[Event "Rosh Hashanah Rapid 2022"]
[Site "Ramat Gan"]
[Date "2022.09.25"]
[Round "5.8"]
[White "After, Asaf"]
[Black "Zemach, Nadav"]
[Result "0-1"]
[ECO "A00"]
[WhiteElo "2056"]
[BlackElo "2238"]
[Annotator "TA"]
[PlyCount "150"]
[EventDate "2022.09.25"]
[EventType "rapid"]
[EventCountry "ISR"]
[SourceTitle "playchess.com"]
[Source "ChessBase"]
[SourceQuality "1"]
[TimeControl "900+5"]

{[%evp 9,150,-4,-4,-4,0,0,0,0,17,13,14,0,63,58,69,34,33,31,28,-16,-8,-34,-31,-45,-33,-31,-12,-13,-12,-42,33,9,138,123,125,127,154,131,127,58,59,23,25,25,16,13,28,-22,75,0,0,0,0,0,0,0,30,32,81,86,367,347,469,165,165,166,162,17,522,0,136,-10,245,-141,0,-111,-66,-317,152,-161,159,-161,96,0,139,24,51,0,0,0,0,0,0,0,0,0,3,3,3,3,10,10,10,-246,-246,-403,0,0,0,0,0,0,0,0,0,-511,-497,-959,-473,-923,-535,-848,0,-862,-779,-812,-790,-720,-731,-1160,-1138,-833,-598,-1257,-1249,-734,-694,-29988,-29989,-29991,-29943,-29997,-29998]} 1. b4 {[%emt 0:00:01]} Nf6 {[%emt 0:00:07]} 2. Bb2 {[%emt 0:00:02]} d5 {[%emt 0:00:02]} 3. e3 {[%emt 0:00:02]} e6 {[%emt 0:00:01]} 4. b5 {[%emt 0:00:02]} c5 {[%emt 0:00:12]} 5. Nf3 {[%emt 0:00:01]} Be7 {[%emt 0:00:05]} 6. c4 {[%emt 0:00:02] A00: Irregular Openings.} Nbd7 {[%emt 0:00:09]} 7. a4 {[%emt 0:00:11]} O-O {[%emt 0:00:36] [#]} 8. d3 $146 {[%emt 0:00:02] The position is equal.} ({Predecessor:} 8. d4 b6 9. Be2 dxc4 10. Bxc4 Bb7 11. O-O Rc8 12. Be2 cxd4 13. Nxd4 Ne4 14. Bf3 {1-0 (25) Necula,I (1890)-Matveeva,O (2171) Chess.com INT 2022}) 8... Bd6 {[%emt 0:00:12]} 9. Nbd2 {[%emt 0:00:02]} Re8 {[%emt 0:00:07]} 10. Be2 {[%emt 0:00:01]} e5 {[%emt 0:00:08]} (10... b6 $11) 11. cxd5 $14 {[%emt 0:00:02]} Nxd5 {[%emt 0:00:02]} 12. O-O {[%emt 0:00:28]} b6 {[%emt 0:00:26]} 13. Nc4 {[%emt 0:00:26]} Bc7 {[%emt 0:00:03]} 14. e4 {[%emt 0:00:06]} Nf4 {[%emt 0:00:06]} 15. Re1 {[%emt 0:00:12]} (15. g3 $5 {[%cal Rg3f4]} Nxe2+ 16. Qxe2 $11) 15... Nxe2+ {[%emt 0:00:54]} 16. Rxe2 {[%emt 0:00:11]} f6 {[%emt 0:00:10]} 17. a5 {[%emt 0:00:44]} bxa5 {[%emt 0:00:08]} 18. Bc3 {[%emt 0:00:10]} a6 {[%emt 0:01:04]} 19. Nxa5 {[%emt 0:01:52] Hoping for Nc6.} Qe7 {[%emt 0:00:38]} (19... axb5 $2 20. Nc6 Rb8 21. Nxd8 $18) (19... Nf8 $15 20. Nc6 Qd7) 20. Nc4 {[%emt 0:00:18]} Bb7 {[%emt 0:00:34]} (20... Nb6 $11) 21. b6 $1 $16 {[%emt 0:00:31]} Bd8 {[%emt 0:01:22]} 22. Rb2 {[%emt 0:01:44]} Kh8 {[%emt 0:00:19]} 23. Nh4 {[%emt 0:00:35]} g6 {[%emt 0:00:15] Against Nf5} 24. Rab1 {[%emt 0:02:02]} (24. Qd2 $16) 24... Rb8 $14 {[%emt 0:00:33]} 25. Qa4 {[%emt 0:00:20] Inhibits Bc6.} Qe6 {[%emt 0:00:27]} 26. Nf3 {[%emt 0:00:19]} Kg7 {[%emt 0:00:30]} 27. h3 {[%emt 0:00:10]} h5 {[%emt 0:00:34]} (27... Bc6 $5 {[%cal Rc6a4]} 28. Qc2 (28. Qxa6 Ra8 $11) 28... Bb5 $11) 28. Rb3 {[%emt 0:00:37]} (28. Qd1 $142) 28... g5 {[%emt 0:00:14]} (28... Bc6 $11 {remains equal.} 29. Qxa6 Ra8 30. Qxa8 Bxa8) 29. Nh2 {[%emt 0:00:44]} (29. R3b2 $16) 29... Bc6 $1 $11 {[%emt 0:00:59]} 30. Qxa6 {[%emt 0:00:54]} Ra8 {[%emt 0:00:01]} 31. Qxa8 {[%emt 0:00:01]} Bxa8 {[%emt 0:00:01]} 32. b7 $36 {[%emt 0:00:01][%mdl 2048] White has good play.} Be7 {[%emt 0:00:51]} (32... Bc7 $5 {[%cal Ra8b7]}) 33. Nf1 {[%emt 0:00:21]} Kg8 {[%emt 0:03:27]} (33... Qc6 $14 {is superior.}) 34. Nfe3 {[%emt 0:00:02] Black must now prevent Nd5.} Bxb7 {[%emt 0:00:27][%mdl 8192]} 35. Rxb7 $18 {[%emt 0:00:01]} Rd8 {[%emt 0:00:46]} 36. Nf5 $2 {[%emt 0:00:13] Prevents Bd6.} (36. Nd5) 36... Bf8 {[%emt 0:00:05]} 37. Nce3 $1 {[%emt 0:00:09][%mdl 1024] Prevents g4. Nd5 is the strong threat. White has strong compensation. Pair of Knights!} Qa6 {[%emt 0:00:24]} 38. R1b5 {[%emt 0:01:41]} (38. Nd5 $18) 38... Qa3 $2 {[%emt 0:00:18][%mdl 8192]} (38... Ra8 $1 $11) 39. Rb3 $2 {[%emt 0:00:04]} (39. Nd5 $18 {Threatens to win with Ba5.} Qa6 40. Kh2) 39... Qa6 {[%emt 0:00:02] Prevents Ba5.} (39... Qc1+ $11 40. Kh2 c4 41. dxc4 Nc5) 40. Bb2 {[%emt 0:00:07]} (40. Nd5 $16) 40... Qa5 {[%emt 0:00:21][%mdl 8192] [#] Prevents R3b6.} (40... c4 $11 {and Black stays safe.} 41. Nxc4 Nc5) 41. Kf1 $2 {[%emt 0:00:31]} ({Only move:} 41. Nd5 $1 $18 {[%cal Ob7d7] aiming for Rxd7!} c4 42. dxc4) 41... Qa6 {[%emt 0:00:19]} (41... c4 $17 42. Nxc4 Qa4) 42. g4 {[%emt 0:00:02]} (42. Kg1 $11 {keeps the balance.}) 42... hxg4 {[%emt 0:00:11]} 43. hxg4 $2 {[%emt 0:00:04][%mdl 8192]} ({White must play} 43. Nxg4 $15 c4 44. R3b6 Qxb6 45. Rxb6 Nxb6 46. Nxf6+ Kf7 47. Ng4) 43... Qa4 $2 {[%emt 0:00:16] [#]} (43... c4 $1 $19 {[%cal Rc4b3]} 44. dxc4 Nc5) 44. Kg2 $2 {[%emt 0:00:14]} (44. Ra3 $1 $16 {[%cal Ra3a4] is necessary to keep the advantage.} Qc6 45. Raa7) 44... Qa6 {[%emt 0:00:06]} (44... c4 $1 $19 {[%cal Rc4b3]} 45. dxc4 Nc5) 45. Kf3 $2 {[%emt 0:00:33]} (45. Nc4 $16 {stays on course.}) 45... Qa4 $2 {[%emt 0:00:03]} (45... c4 $1 $19 {[%cal Rc4b3]} 46. dxc4 Nc5) 46. Nc4 {[%emt 0:00:35]} ({White should try} 46. Ra3 $16 Qc6 47. Raa7) 46... Qa6 {[%emt 0:00:05]} (46... Qa8 $11) 47. Bc3 {[%emt 0:00:03]} (47. Kg2 $16) 47... Qa8 $1 $11 {[%emt 0:00:07]} 48. Ba5 {[%emt 0:00:02]} (48. Rb2 $1 $14) 48... Rb8 {[%emt 0:00:02] Really sharp!} 49. Rxb8 {[%emt 0:00:36]} Nxb8 {[%emt 0:00:02]} 50. Bc7 {[%emt 0:00:06]} Nc6 {[%emt 0:00:03]} 51. Rb6 {[%emt 0:00:15]} Kf7 {[%emt 0:00:04]} 52. Bd6 {[%emt 0:00:10]} Nd4+ {[%emt 0:00:09]} 53. Nxd4 {[%emt 0:00:02]} cxd4 {[%emt 0:00:10]} 54. Rb8 {[%emt 0:00:01]} Qa1 {[%emt 0:00:09]} 55. Rxf8+ {[%emt 0:00:02]} Kg7 {[%emt 0:00:00] And now ...Qd1+ would win.} 56. Rd8 $2 {[%emt 0:00:19][%mdl 8192]} (56. Kg2 $11) 56... Qd1+ $19 {[%emt 0:00:02][%mdl 64] Deflection, Double Attack} 57. Kg2 $2 {[%emt 0:00:04]} (57. Kg3 {was the only defense.} Qxd3+ 58. Ne3) 57... Qxd3 $2 {[%emt 0:00:06]} ({Better is} 57... Qxg4+ $19 58. Kh2 Qf3) 58. Rd7+ $11 {[%emt 0:00:06]} Kg8 {[%emt 0:00:04]} (58... Kg6 $5 59. Bf8 $8 Qxe4+ 60. f3 Qc2+ 61. Kg1 Qe2 $11) 59. Rd8+ {[%emt 0:00:11]} Kg7 {[%emt 0:00:01]} (59... Kf7 $5 60. Rd7+ $8 Ke8 61. Re7+ Kd8 $11) 60. Rd7+ {[%emt 0:00:01]} Kg8 {[%emt 0:00:09]} (60... Kg6 $5 61. Bf8 $8 Qxe4+ 62. f3 Qc2+ 63. Kg1 Qe2 $11) 61. Rd8+ {[%emt 0:00:01]} Kf7 {[%emt 0:00:04]} 62. Rc8 $2 {[%emt 0:00:35][%mdl 8192]} (62. Rd7+ $1 $11 Ke8 63. Re7+ Kd8 64. Nb6) 62... Qxe4+ $19 {[%emt 0:00:02]} 63. Kf1 {[%emt 0:00:02]} (63. f3 $142 Qe2+ 64. Kg3 Qe1+ 65. Kg2) 63... Qxg4 {[%emt 0:00:04]} (63... Qb1+ $142 64. Ke2 d3+ 65. Kf3 Qh1+ 66. Ke3 Qd1 67. Rc7+ Ke6) 64. Ba3 {[%emt 0:00:08]} (64. Rb8 $142 d3 65. Ne3) 64... Qd1+ {[%emt 0:00:02]} 65. Kg2 {[%emt 0:00:01]} Qg4+ {[%emt 0:00:10]} 66. Kf1 $1 {[%emt 0:00:01]} Qh3+ {[%emt 0:00:03]} 67. Ke1 {[%emt 0:00:03]} Qc3+ {[%emt 0:00:02]} 68. Kf1 {[%emt 0:00:01]} Qd3+ {[%emt 0:00:07]} 69. Kg1 {[%emt 0:00:01]} Kg6 {[%emt 0:00:03] Strongly threatening ...Qd1+.} 70. Rc7 {[%emt 0:00:07]} Kh5 {[%emt 0:00:07]} 71. Be7 {[%emt 0:00:05]} Kg4 {[%emt 0:00:09] ( -> ...Kh3)} 72. Bxf6 {[%emt 0:00:07]} Kh3 {[%emt 0:00:00][%cal Rd3d1]} 73. Rh7+ {[%emt 0:00:06]} Qxh7 {[%emt 0:00:02][%cal Rh7b1] Black mates.} 74. Nd2 {[%emt 0:00:12]} Qd3 {[%emt 0:00:04]} 75. Nf1 {[%emt 0:00:02]} Qf3 {[%emt 0:00:01] Black used his chance.  Weighted Error Value: White=0.84/Black=0.69} 0-1

[Event "Rosh Hashanah Rapid 2022"]
[Site "Ramat Gan"]
[Date "2022.09.25"]
[Round "5.10"]
[White "Kaganskiy, Gleb"]
[Black "Michaeli, Omri"]
[Result "1-0"]
[ECO "C47"]
[WhiteElo "2225"]
[BlackElo "1889"]
[Annotator "TA"]
[PlyCount "87"]
[EventDate "2022.09.25"]
[EventType "rapid"]
[EventCountry "ISR"]
[SourceTitle "playchess.com"]
[Source "ChessBase"]
[SourceQuality "1"]
[TimeControl "900+5"]

{[%evp 16,87,0,0,21,17,14,17,8,21,18,17,11,13,5,0,52,49,43,41,85,62,176,176,176,176,176,182,245,184,500,494,511,486,511,397,494,479,817,781,869,853,818,729,824,749,1577,1417,1491,1340,2302,1947,1857,1695,29967,29965,29965,29970,6199,6079,29976,29977,29979,29980,29989,29987,29990,29991,29991,29987,29989,29990,29989,29989]} 1. e4 {[%emt 0:00:03]} e5 {[%emt 0:00:01]} 2. Nf3 {[%emt 0:00:02]} Nc6 {[%emt 0:00:01]} 3. Nc3 {[%emt 0:00:05]} Nf6 {[%emt 0:00:03]} 4. d4 {[%emt 0:00:01]} exd4 {[%emt 0:00:02]} 5. Nxd4 {[%emt 0:00:02]} Bb4 {[%emt 0:00:01]} 6. Nxc6 {[%emt 0:00:02]} bxc6 {[%emt 0:00:03]} 7. Bd3 {[%emt 0:00:01]} d5 {[%emt 0:00:06]} 8. Bd2 {[%emt 0:00:17]} O-O {[%emt 0:00:18]} 9. O-O {[%emt 0:00:04]} Re8 {[%emt 0:00:27] [#] C47: Scotch Four Knights and Four Knights with 4 g3.} 10. Nxd5 $1 {[%emt 0:00:56]} Nxd5 {[%emt 0:00:25]} 11. exd5 {[%emt 0:00:03]} Bxd2 {[%emt 0:00:11] The position is equal.} 12. Qxd2 {[%emt 0:00:05]} cxd5 {[%emt 0:00:03]} 13. Rfe1 {[%emt 0:00:14]} Rxe1+ {[%emt 0:01:00]} 14. Rxe1 {[%emt 0:00:03]} Be6 {[%emt 0:00:03]} 15. Qf4 {[%emt 0:01:14] [#]} Qf6 $146 {[%emt 0:01:30]} (15... c5 $11) ({Predecessor:} 15... c5 16. c4 d4 17. h4 Rc8 18. h5 Qf6 19. Qxf6 gxf6 20. h6 Kf8 {1-0 (32) Citra,D (2227)-Zvara,P (2370) Pardubice 2017}) 16. Qxf6 $14 {[%emt 0:00:21]} ({Much worse is} 16. Qxc7 Qxb2 17. Qa5 g6 $11) 16... gxf6 {[%emt 0:00:02][%mdl 4096] Endgame KRB-KRB} 17. f4 {[%emt 0:00:22][%cal Bf2f4,Bf4f5][%mdl 32]} Re8 {[%emt 0:01:44]} 18. Kf2 {[%emt 0:01:29] White is more active. Black is on the road to losing.} c5 {[%emt 0:01:31] [#]} (18... Rb8 $14) 19. f5 $1 $18 {[%emt 0:01:00]} Bd7 {[%emt 0:00:02]} 20. Rxe8+ {[%emt 0:00:02]} Bxe8 {[%emt 0:00:02] [#] KB-KB} 21. b4 $1 {[%emt 0:00:00]} c4 {[%emt 0:00:40]} (21... cxb4 $142 22. Ke3 Bc6) 22. Be2 {[%emt 0:00:20] aiming for Ke3.} Kf8 $2 {[%emt 0:00:17]} (22... Bd7 {is a better chance.} 23. g4 Ba4) 23. Ke3 {[%emt 0:00:12]} Ke7 {[%emt 0:00:02]} 24. Kd4 {[%emt 0:00:02]} Kd6 {[%emt 0:00:02]} 25. Bf3 {[%emt 0:00:21]} Bc6 {[%emt 0:00:15]} 26. c3 {[%emt 0:00:07]} a6 {[%emt 0:00:21]} (26... h6 $142 27. a4 a6) 27. g3 {[%emt 0:00:32]} h6 {[%emt 0:01:03]} 28. a3 {[%emt 0:00:06][%cal Ba2a3,Ba3a4,Ba4b5][%mdl 32]} Bb7 {[%emt 0:01:12]} 29. Bh5 {[%emt 0:00:11]} Ke7 {[%emt 0:00:06]} 30. Kc5 {[%emt 0:00:11]} Ba8 {[%emt 0:00:01]} 31. a4 {[%emt 0:00:53]} Bb7 {[%emt 0:00:04]} 32. b5 {[%emt 0:00:15]} axb5 {[%emt 0:00:15]} 33. axb5 {[%emt 0:00:02] Bf3 would kill now.} Bc8 {[%emt 0:00:32]} 34. Bf3 {[%emt 0:00:22]} Bxf5 {[%emt 0:00:32]} 35. Bxd5 {[%emt 0:00:03]} Be6 {[%emt 0:00:16]} 36. Bxc4 {[%emt 0:00:19]} Kd7 {[%emt 0:00:01]} 37. Bd5 {[%emt 0:00:12] White wants to mate with Bxe6+.} h5 {[%emt 0:00:11]} 38. h4 {[%emt 0:00:02] White mates.} Kc7 {[%emt 0:00:13]} 39. b6+ {[%emt 0:00:02]} Kb8 {[%emt 0:00:07]} 40. c4 {[%emt 0:00:08][%cal Bc3c4,Bc4c5][%mdl 32]} f5 {[%emt 0:00:07]} 41. Bxe6 {[%emt 0:00:06]} fxe6 {[%emt 0:00:03]} 42. Kd6 {[%emt 0:00:01]} Kb7 {[%emt 0:00:04]} 43. c5 {[%emt 0:00:01]} Ka6 {[%emt 0:00:15]} 44. Kxe6 {[%emt 0:00:04] Weighted Error Value: White=0.07 (flawless) /Black=0.72} 1-0

[Event "Rosh Hashanah Rapid 2022"]
[Site "Ramat Gan"]
[Date "2022.09.25"]
[Round "6.1"]
[White "Mindlin, Alon"]
[Black "Dvoirys, Semen I."]
[Result "0-1"]
[ECO "D71"]
[WhiteElo "2426"]
[BlackElo "2461"]
[Annotator "TA"]
[PlyCount "106"]
[EventDate "2022.09.25"]
[EventType "rapid"]
[EventCountry "ISR"]
[SourceTitle "playchess.com"]
[Source "ChessBase"]
[SourceQuality "1"]
[TimeControl "900+5"]

{[%evp 17,106,12,11,12,11,6,16,14,19,22,12,14,14,25,12,2,0,0,-5,-7,0,-9,-4,-35,-4,-96,-94,-96,-100,-187,-188,-216,-227,-213,-146,-146,-59,-56,-62,-255,-144,-172,-99,-306,-305,-303,-296,-301,-297,-295,-287,-327,-253,-252,-252,-252,-208,-307,-307,-307,-231,-376,-371,-361,-358,-385,-381,-371,-352,-345,-322,-439,0,-311,-247,-245,-229,-418,-384,-400,-364,-585,-576,-573,-564,-538,-536,-621,-602,-4988,-2603]} 1. d4 {[%emt 0:00:01]} Nf6 {[%emt 0:00:03]} 2. c4 {[%emt 0:00:01]} g6 {[%emt 0:00:02]} 3. Nc3 {[%emt 0:00:02]} d5 {[%emt 0:00:03]} 4. cxd5 Nxd5 {[%emt 0:00:01]} 5. g3 {[%emt 0:00:03]} Bg7 {[%emt 0:00:03]} 6. Bg2 {[%emt 0:00:02]} Nb6 {[%emt 0:00:07]} 7. Nf3 {[%emt 0:00:03]} Nc6 {[%emt 0:00:09]} 8. O-O {[%emt 0:00:03]} Nxd4 {[%emt 0:01:14]} 9. Nxd4 {[%emt 0:00:05]} Qxd4 {[%emt 0:00:21]} 10. Nb5 {[%emt 0:01:32] D71: Fianchetto Grünfeld: 3 g3 d5 sidelines and 5 cxd5 (without Nf3).} Qc4 {[%emt 0:00:51]} 11. Qb3 {[%emt 0:00:39] [#] Hoping for Qxc4.} Be5 {[%emt 0:02:03]} 12. Bf4 {[%emt 0:01:48] The position is equal.} Bxf4 {[%emt 0:00:14]} 13. Qxc4 {[%emt 0:00:02]} Nxc4 {[%emt 0:00:02]} 14. gxf4 {[%emt 0:00:01]} O-O {[%emt 0:02:00] [#]} 15. Nxc7 $146 {[%emt 0:11:58]} ({Predecessor:} 15. Rac1 Nd6 16. Nxc7 Rb8 17. Nd5 Re8 18. e4 Kf8 19. Rc3 Rd8 20. Rd1 Bg4 21. f3 {½-½ (33) Coleman,G-Micklethwaite,M England 1997}) 15... Rb8 16. Rfc1 {[%emt 0:00:00]} Nxb2 {[%emt 0:00:47]} 17. Rab1 {[%emt 0:00:00]} Na4 {[%emt 0:00:03]} 18. Nd5 {[%emt 0:00:00]} Re8 {[%emt 0:01:33]} 19. Rc7 {[%emt 0:00:00]} Kf8 {[%emt 0:00:02]} 20. h4 {[%emt 0:00:00]} a6 {[%emt 0:00:17][%cal Ba7a6,Ba6a5][%mdl 32]} 21. Nb4 {[%emt 0:00:00]} (21. e3 $11 {remains equal.}) 21... Bf5 $17 {[%emt 0:00:15]} 22. e4 {[%emt 0:00:00]} Be6 {[%emt 0:00:14]} 23. e5 {[%emt 0:00:00]} (23. f5 $17 gxf5 24. exf5 Bxf5 25. Rbc1) 23... a5 $19 {[%emt 0:00:19]} 24. Nd5 {[%emt 0:00:00]} b5 {[%emt 0:00:11]} 25. a3 {[%emt 0:00:00]} Bxd5 {[%emt 0:00:48]} 26. Bxd5 {[%emt 0:00:00]} b4 {[%emt 0:00:01]} (26... Red8 $17 27. Be4 Rbc8 28. Rxc8 Rxc8) 27. axb4 $15 {[%emt 0:00:00]} axb4 {[%emt 0:00:02]} 28. Bb7 $2 {[%emt 0:00:00]} (28. Bf3 $1 $15) 28... Nc5 {[%emt 0:00:15]} 29. Bf3 {[%emt 0:00:00]} Nd3 {[%emt 0:00:21]} ({Black should try} 29... Ne6 $19 30. Rc4 b3) 30. Rc4 {[%emt 0:00:00]} (30. Rb3 $17 {was called for.} Nxf4 31. Rc4) 30... Rec8 $19 {[%emt 0:00:25]} 31. Rd4 {[%emt 0:00:00]} Rc1+ {[%emt 0:00:11]} 32. Rxc1 {[%emt 0:00:00]} Nxc1 {[%emt 0:00:01][%mdl 4096] Endgame KRB-KRN} 33. Rc4 {[%emt 0:00:00]} Na2 {[%emt 0:00:23]} 34. Be4 {[%emt 0:00:20]} Nc3 {[%emt 0:00:25]} 35. Bc2 {[%emt 0:00:03]} Nd5 {[%emt 0:00:25] aiming for ...b3.} 36. Bb3 {[%emt 0:00:01]} e6 {[%emt 0:00:07]} 37. Kg2 {[%emt 0:00:17]} (37. h5 $142) 37... h5 {[%emt 0:00:09]} 38. Kg3 {[%emt 0:00:13]} Ra8 {[%emt 0:00:41] [#] Strongly threatening ...Ra3.} 39. f3 {[%emt 0:00:02]} (39. Kg2 $142) 39... Rb8 {[%emt 0:00:13]} 40. Rd4 {[%emt 0:00:24]} Ne3 {[%emt 0:00:03] ( -> ...Nf5+)} 41. Re4 {[%emt 0:00:10]} Nf5+ {[%emt 0:00:03]} 42. Kh3 {[%emt 0:00:01]} Ke7 {[%emt 0:00:02]} 43. Rc4 {[%emt 0:00:01]} Kd8 {[%emt 0:00:05]} 44. Rc2 {[%emt 0:00:22]} Ke7 {[%emt 0:00:11]} 45. Rc4 $1 {[%emt 0:00:06]} Rd8 {[%emt 0:00:03]} 46. Rxb4 {[%emt 0:00:05]} Rd3 {[%emt 0:00:01]} 47. Rb7+ $2 {[%emt 0:00:25]} (47. Ba4) 47... Kf8 {[%emt 0:00:01]} 48. Rb8+ {[%emt 0:00:01]} Kg7 {[%emt 0:00:01]} 49. Rb7 $2 {[%emt 0:00:05]} (49. Rb4 {is the only way for White.}) 49... Rxf3+ {[%emt 0:03:19] Black is clearly winning.} 50. Kh2 Nd4 {[%emt 0:00:00]} 51. Bc4 {[%emt 0:00:02]} Rxf4 {[%emt 0:00:00]} 52. Kg3 {[%emt 0:00:06]} Re4 {[%emt 0:00:00] ...Nf5+ is the strong threat.} 53. Rd7 {[%emt 0:00:02]} Nf5+ {[%emt 0:00:00] Weighted Error Value: White=0.55/Black=0.25 (precise)} 0-1

[Event "Rosh Hashanah Rapid 2022"]
[Site "Ramat Gan"]
[Date "2022.09.25"]
[Round "6.2"]
[White "Sokolovsky, Yahli"]
[Black "Ben Ari, Yannay"]
[Result "1-0"]
[ECO "B30"]
[WhiteElo "2419"]
[BlackElo "2387"]
[Annotator "TA"]
[PlyCount "69"]
[EventDate "2022.09.25"]
[EventType "rapid"]
[EventCountry "ISR"]
[SourceTitle "playchess.com"]
[Source "ChessBase"]
[SourceQuality "1"]
[TimeControl "900+5"]

{[%evp 15,69,12,16,-8,-6,-37,44,38,31,0,0,0,0,0,4,0,0,0,11,10,11,0,0,0,15,30,20,18,19,33,106,119,119,109,125,125,134,127,157,155,539,525,751,737,719,627,836,835,794,787,950,954,914,921,5597,2589]} 1. e4 {[%emt 0:00:02] Polgar,Zsu} c5 {[%emt 0:00:01]} 2. Nf3 {[%emt 0:00:01]} Nc6 {[%emt 0:00:01]} 3. Bb5 {[%emt 0:00:04]} e6 {[%emt 0:00:01]} 4. O-O {[%emt 0:00:05]} Nge7 {[%emt 0:00:01]} 5. c3 {[%emt 0:00:00]} a6 {[%emt 0:00:05]} 6. Ba4 {[%emt 0:00:02]} b5 {[%emt 0:00:01]} 7. Bc2 {[%emt 0:00:01]} Bb7 {[%emt 0:00:02]} 8. Re1 {[%emt 0:00:01]} Rc8 {[%emt 0:01:34]} 9. d4 {[%emt 0:01:29] B30: Sicilian: 2...Nc6 3 Bb5, lines without ...g6.} cxd4 {[%emt 0:00:06]} 10. a4 {[%emt 0:00:01]} Ng6 {[%emt 0:01:35]} (10... dxc3 $15 11. Nxc3 b4) 11. axb5 $14 {[%emt 0:00:22] White is slightly better.} axb5 {[%emt 0:00:02]} 12. cxd4 {[%emt 0:00:02]} Nb4 $1 {[%emt 0:06:22]} 13. Bb3 {[%emt 0:00:01]} Rxc1 {[%emt 0:00:10]} 14. Qxc1 {[%emt 0:00:02] And now Qe3 would win.} Nd3 {[%emt 0:00:00][%csl LRc1,LRe1]} 15. Qe3 {[%emt 0:00:17]} Nxe1 {[%emt 0:00:03] [#]} 16. Nxe1 $146 {[%emt 0:02:27][%cal Bf3e1,Be1d3,Bd3c5,Bc5d7][%mdl 32]} ({Predecessor:} 16. Qxe1 Be7 17. Nc3 O-O 18. Nxb5 Qb6 19. Bc4 f5 20. e5 Bxf3 21. gxf3 Nh4 22. Qc3 {0-1 (41) Ioseliani,N (2445)-Polgar,Z (2540) Shanghai 1992 CBM 033 [Polgar,Zsu]}) 16... Be7 {[%emt 0:00:19]} 17. Nd3 {[%emt 0:00:38]} O-O {[%emt 0:00:36]} 18. Nc3 {[%emt 0:00:55]} b4 {[%emt 0:00:59]} 19. Na4 {[%emt 0:00:17]} Qa5 {[%emt 0:00:41]} 20. Ra2 {[%emt 0:00:17]} Qb5 {[%emt 0:02:30] Threatens to win with ...Ba6.} 21. Nac5 {[%emt 0:00:04] Against Ba6. Strongly threatening Ba4.} Bxc5 {[%emt 0:01:17]} 22. Nxc5 {[%emt 0:00:03] Hoping for Ba4.} ({Not} 22. dxc5 $2 Ba6 23. Rxa6 (23. Bc2 $2 Ne5 $19) 23... Qxa6 $19) 22... Ra8 {[%emt 0:00:21] [#]} (22... Bc8 $14) 23. Ba4 $1 $16 {[%emt 0:01:17]} Qb6 {[%emt 0:00:01]} 24. Nxd7 {[%emt 0:00:17]} Qd6 {[%emt 0:00:01][%cal Ob4b3]} 25. Nc5 $36 {[%emt 0:00:24][%mdl 2048] Black is under strong pressure.} Bc6 {[%emt 0:00:04]} 26. Bb3 {[%emt 0:00:21]} Rd8 {[%emt 0:00:09]} 27. Ra6 {[%emt 0:00:12]} Ne7 {[%emt 0:00:05] [#] Against d5. Black cannot hold the game after this.} (27... Ra8 $16) 28. Nb7 $18 {[%emt 0:00:35] White is clearly winning.} Bxb7 {[%emt 0:00:10]} 29. Rxd6 {[%emt 0:00:01]} Rxd6 {[%emt 0:00:01]} 30. Qf4 {[%emt 0:00:53]} Rxd4 {[%emt 0:00:11]} 31. Qc7 {[%emt 0:00:10][%csl LRb7,LRe7]} Ng6 {[%emt 0:00:05]} 32. Qxb7 {[%emt 0:00:14]} h5 {[%emt 0:00:04]} 33. g3 {[%emt 0:00:11]} h4 {[%emt 0:00:01]} 34. Kg2 {[%emt 0:00:01]} Kf8 {[%emt 0:00:09]} 35. Qc8+ {[%emt 0:00:04] Weighted Error Value: White=0.11 (very precise) /Black=0.50} 1-0